[Event "Kragero Resort International 2022"]
[Site "Kragero"]
[Date "2022.02.27"]
[Round "9.8"]
[White "Hammari, Vinjar"]
[Black "Gharibyan, Mane"]
[Result "0-1"]
[ECO "E11"]
[WhiteElo "1775"]
[BlackElo "1592"]
[Annotator "NA"]
[PlyCount "104"]
[EventDate "2022.02.23"]
[EventType "swiss"]
[EventCountry "NOR"]
[SourceTitle "playchess.com"]
[Source "ChessBase"]
[SourceQuality "1"]
[TimeControl "5400+30"]

1. d4 {[%emt 0:00:20]} Nf6 {[%emt 0:00:10]} 2. c4 {[%emt 0:00:07]} e6 {[%emt 0:00:05]} 3. g3 {[%emt 0:00:08]} d5 {[%emt 0:06:47]} 4. Bg2 {[%emt 0:00:50]} Bb4+ {[%emt 0:05:27]} 5. Bd2 {[%emt 0:00:29]} Bxd2+ {[%emt 0:00:44]} 6. Nxd2 {[%emt 0:00:08]} O-O {[%emt 0:00:38]} 7. Ngf3 {[%emt 0:00:09]} b6 {[%emt 0:01:36]} 8. Qc2 {[%emt 0:00:26]} Bb7 {[%emt 0:00:58]} 9. O-O {[%emt 0:00:28]} Nbd7 {[%emt 0:03:18]} 10. c5 {[%emt 0:02:10]} bxc5 {[%emt 0:21:54]} 11. dxc5 {[%emt 0:00:08]} c6 {[%emt 0:00:17]} 12. b4 {[%emt 0:01:51]} Qc7 {[%emt 0:16:26]} 13. Nb3 {[%emt 0:05:40]} e5 {[%emt 0:06:23]} 14. e3 {[%emt 0:01:54]} Rab8 {[%emt 0:03:03]} 15. Rfd1 {[%emt 0:03:26]} Ba6 {[%emt 0:02:41]} 16. a3 {[%emt 0:01:10]} e4 {[%emt 0:03:37]} 17. Nfd4 {[%emt 0:00:18]} Ne5 {[%emt 0:00:10]} 18. Na5 {[%emt 0:00:52]} Rfe8 {[%emt 0:02:45]} 19. h3 {[%emt 0:01:38]} Qd7 {[%emt 0:05:53]} 20. Kh2 {[%emt 0:01:11]} h6 {[%emt 0:00:22]} 21. Qa4 {[%emt 0:01:45]} Bb5 {[%emt 0:07:12]} 22. Nxb5 {[%emt 0:00:21]} Rxb5 {[%emt 0:01:03]} 23. Ra2 {[%emt 0:05:19]} Qc8 {[%emt 0:03:07]} 24. Qc2 {[%emt 0:02:25]} Nh7 {[%emt 0:00:32]} 25. Nb3 {[%emt 0:01:38]} Ng5 {[%emt 0:01:24]} 26. Nd4 {[%emt 0:00:06]} Rb8 {[%emt 0:00:35]} 27. Rb1 {[%emt 0:02:33]} Re7 {[%emt 0:02:59]} 28. a4 {[%emt 0:00:29]} a6 {[%emt 0:00:22]} 29. Rab2 {[%emt 0:01:03]} Reb7 {[%emt 0:00:52]} 30. Qd1 {[%emt 0:01:00]} Nd3 {[%emt 0:00:30]} 31. Rd2 {[%emt 0:02:22]} Rxb4 {[%emt 0:00:13]} 32. Rxb4 {[%emt 0:00:15]} Rxb4 {[%emt 0:00:02]} 33. Rxd3 {[%emt 0:00:20]} exd3 {[%emt 0:00:07]} 34. Qxd3 {[%emt 0:00:06]} Rxa4 {[%emt 0:00:30]} 35. Nf5 {[%emt 0:00:15]} Kh8 {[%emt 0:01:03]} 36. Nd6 {[%emt 0:00:07]} Qc7 {[%emt 0:03:33]} 37. Qf5 {[%emt 0:00:47]} Kg8 {[%emt 0:00:05]} 38. Ne8 {[%emt 0:04:36]} Qd8 {[%emt 0:00:15]} 39. Nd6 {[%emt 0:00:29]} Qc7 {[%emt 0:01:45]} 40. Qe5 {[%emt 0:01:19]} Ne6 {[%emt 0:00:22]} 41. Bf1 {[%emt 0:01:06]} Ra3 {[%emt 0:00:38]} 42. f4 {[%emt 0:00:41]} Ra2+ {[%emt 0:00:26]} 43. Kg1 {[%emt 0:00:11]} Ra5 {[%emt 0:00:24]} 44. f5 {[%emt 0:00:38]} Nf8 {[%emt 0:00:05]} 45. Qc3 {[%emt 0:00:20]} f6 {[%emt 0:00:55]} 46. e4 {[%emt 0:00:47]} Nd7 {[%emt 0:00:40]} 47. Nb7 {[%emt 0:01:40]} Ra4 {[%emt 0:00:28]} 48. exd5 {[%emt 0:00:37]} cxd5 {[%emt 0:00:36]} 49. c6 {[%emt 0:00:19]} Ne5 {[%emt 0:00:25]} 50. Nc5 {[%emt 0:01:14]} Ra5 {[%emt 0:00:33]} 51. Nxa6 {[%emt 0:00:17]} Qb6+ {[%emt 0:00:30]} 52. Nc5 {[%emt 0:00:59]} Qxc5+ {[%emt 0:00:16]} 0-1